fUST/lending_fUST_20240707
["ID","MTS","AMOUNT","RATE_DAILY","PERIOD"]
[331381339,1720303859479,-500.0,0.00044109,120]
[331381340,1720303859494,-500.0,0.00044109,120]
[331381341,1720303859507,-500.0,0.00044109,120]
[331381342,1720303859521,-151.0,0.00044109,14]
[331381343,1720303859534,-151.0,0.00044109,14]
[331381344,1720303859547,-151.0,0.00044109,14]
[331381345,1720303859560,-500.0,0.00044109,120]
[331381346,1720303859574,-151.0,0.00044109,14]
[331381347,1720303859590,-151.0,0.00044109,14]
[331381348,1720303859604,-151.0,0.00044109,14]
[331381349,1720303859619,-500.0,0.00044109,120]
[331381350,1720303859632,-500.0,0.00044109,120]
[331381351,1720303859645,-530.36,0.00044109,120]
[331381352,1720303859659,-500.0,0.00044109,120]
[331381353,1720303859673,-500.0,0.00044109,120]
[331381354,1720303859686,-472.74907715,0.00044109,120]
[331381355,1720303859699,-500.0,0.00044109,120]
[331381356,1720303859712,-1173.62,0.00044109,120]
[331381357,1720303859732,-625.63,0.00044109,120]
[331381358,1720303859746,-500.0,0.00044109,120]
[331381359,1720303859760,-500.0,0.00044109,120]
[331381360,1720303859775,-500.0,0.00044109,120]
[331381361,1720303859788,-657.84,0.00044109,120]
[331381362,1720303859802,-500.0,0.00044109,120]
[331381363,1720303859815,-500.0,0.00044109,120]
[331381364,1720303859828,-500.0,0.00044109,120]
[331381365,1720303859842,-500.0,0.00044109,120]
[331381366,1720303859861,-500.0,0.00044109,120]
[331381367,1720303859876,-500.0,0.00044109,120]
[331381368,1720303859889,-500.0,0.00044109,120]
[331381369,1720303859904,-500.0,0.00044109,120]
[331381370,1720303859918,-500.0,0.00044109,120]
[331381371,1720303859932,-500.0,0.00044109,120]
[331381372,1720303859945,-500.0,0.00044109,120]
[331381373,1720303859958,-500.0,0.00044109,120]
[331381374,1720303859972,-500.0,0.00044109,120]
[331381375,1720303859986,-500.0,0.00044109,120]
[331381376,1720303860000,-500.0,0.00044109,120]
[331381377,1720303860012,-500.0,0.00044109,120]
[331381378,1720303860022,-523.38,0.00044109,120]
[331381379,1720303860031,-572.99,0.00044109,120]
[331381380,1720303860041,-1367.17,0.00044109,120]
[331381381,1720303860050,-500.0,0.00044109,120]
[331381382,1720303860060,-500.0,0.00044109,120]
[331381383,1720303860070,-500.0,0.00044109,120]
[331381384,1720303860079,-240.14057045,0.00044109,120]
[331381385,1720303860089,-1297.49,0.00044109,120]
[331381386,1720303860098,-500.0,0.00044109,120]
[331381387,1720303860109,-500.0,0.00044109,120]
[331381388,1720303860118,-500.0,0.00044109,120]
[331381389,1720303860128,-500.0,0.00044109,120]
[331381390,1720303860139,-500.0,0.00044109,120]
[331381391,1720303860149,-500.0,0.00044109,120]
[331381392,1720303860160,-500.0,0.00044109,120]
[331381393,1720303860171,-500.0,0.00044109,120]
[331381394,1720303860180,-500.0,0.00044109,120]
[331381395,1720303860191,-500.0,0.00044109,120]
[331381396,1720303860426,-500.0,0.00044109,120]
[331381397,1720303860449,-500.0,0.00044109,120]
[331381398,1720303860461,-524.23524192,0.00044109,120]
[331381399,1720303860471,-500.0,0.00044109,120]
[331381400,1720303860480,-921.62,0.00044109,120]
[331381401,1720303860490,-500.0,0.00044109,120]
[331381402,1720303860500,-500.99996737,0.00044109,120]
[331381403,1720303860509,-500.0,0.00044109,120]
[331381404,1720303860520,-500.0,0.00044109,120]
[331381405,1720303860529,-500.0,0.00044109,120]
[331381406,1720303860539,-500.0,0.00044109,120]
[331381407,1720303860548,-546.45,0.00044109,120]
[331381408,1720303860558,-611.91890708,0.00044109,120]
[331381409,1720303860568,-1200.92,0.00044109,120]
[331381410,1720303860578,-500.0,0.00044109,120]
[331381411,1720303860590,-500.0,0.00044109,120]
[331381412,1720303860599,-500.0,0.00044109,120]
[331381413,1720303860611,-151.0,0.00044109,14]
[331381414,1720303860621,-1415.54,0.00044109,120]
[331381415,1720303860632,-500.0,0.00044109,120]
[331381416,1720303860641,-500.0,0.00044109,120]
[331381417,1720303860651,-500.0,0.00044109,120]
[331381418,1720303860661,-500.0,0.00044109,120]
[331381419,1720303860671,-3536.71,0.00044109,120]
[331381420,1720303860680,-834.9,0.00044109,120]
[331381421,1720303860690,-158.31785185,0.00044109,120]
[331381422,1720303860699,-506.01871852,0.00044109,120]
[331381423,1720303860708,-500.0,0.00044109,120]
[331381424,1720303860718,-500.0,0.00044109,120]
[331381425,1720303860728,-500.0,0.00044109,120]
[331381426,1720303860737,-500.0,0.00044109,120]
[331381427,1720303860747,-511.85669846,0.00044109,30]
[331381428,1720303860756,-880.96,0.00044109,120]
[331381429,1720303860765,-505.38501749,0.00044109,120]
[331381430,1720303860775,-500.0,0.00044109,120]
[331381431,1720303860784,-538.85,0.00044109,120]
[331381432,1720303860793,-500.0,0.00044109,120]
[331381433,1720303860803,-500.0,0.00044109,120]
[331381434,1720303860812,-500.0,0.00044109,120]
[331381435,1720303860821,-500.0,0.00044109,120]
[331381436,1720303860831,-532.83,0.00044109,120]
[331381437,1720303860841,-315.21415718,0.00044109,120]
[331381438,1720303860850,-500.0,0.00044109,120]
[331381439,1720303860860,-500.0,0.00044109,120]
[331381440,1720303860870,-967.6,0.00044109,120]
[331381441,1720303860879,-500.0,0.00044109,120]
[331381442,1720303860890,-1083.35,0.00044109,120]
[331381443,1720303860899,-727.71,0.00044109,120]
[331381444,1720303860909,-500.0,0.00044109,120]
[331381445,1720303860918,-500.0,0.00044109,120]
[331381446,1720303860929,-816.58,0.00044109,120]
[331381447,1720303860938,-505.59,0.00044109,120]
[331381448,1720303860948,-500.0,0.00044109,120]
[331381449,1720303860958,-500.0,0.00044109,120]
[331381450,1720303860969,-500.0,0.00044109,120]
[331381451,1720303860978,-1261.15,0.00044109,120]
[331381452,1720303860988,-1000.0,0.00044109,120]
[331381453,1720303860998,-1376.05,0.00044109,120]
[331381454,1720303861007,-2104.27,0.00044109,120]
[331381455,1720303861016,-1000.0,0.00044109,90]
[331381456,1720303861025,-500.0,0.00044109,120]
[331381457,1720303861034,-500.0,0.00044109,120]
[331381458,1720303861044,-500.0,0.00044109,2]
[331381459,1720303861053,-1024.28,0.00044109,120]
[331381460,1720303861062,-500.0,0.00044109,120]
[331381461,1720303861072,-500.0,0.00044109,120]
[331381462,1720303861081,-500.0,0.00044109,120]
[331381463,1720303861090,-500.0,0.00044109,120]
[331381464,1720303861099,-500.79820632,0.00044109,120]
[331381465,1720303861112,-500.0,0.00044109,120]
[331381466,1720303861121,-500.0,0.00044109,120]
[331381467,1720303861132,-500.0,0.00044109,120]
[331381468,1720303861143,-500.0,0.00044109,120]
[331381469,1720303861154,-835.33,0.00044109,120]
[331381470,1720303861166,-500.0,0.00044109,120]
[331381471,1720303861175,-511.44049353,0.00044109,120]
[331381472,1720303861184,-500.0,0.00044109,120]
[331381473,1720303861193,-500.0,0.00044109,120]
[331381474,1720303861202,-498.43897403,0.00044109,120]
[331381475,1720303861211,-537.7,0.00044109,120]
[331381476,1720303861221,-500.0,0.00044109,120]
[331381477,1720303861230,-500.0,0.00044109,120]
[331381478,1720303861241,-500.0,0.00044109,120]
[331381479,1720303861251,-571.51,0.00044109,120]
[331381480,1720303861260,-537.7,0.00044109,120]
[331381481,1720303861269,-500.0,0.00044109,120]
[331381482,1720303861278,-457.928979,0.00044109,14]
[331381483,1720303861287,-500.0,0.00044109,120]
[331381484,1720303861296,-457.928979,0.00044109,14]
[331381485,1720303861305,-457.928979,0.00044109,14]
[331381486,1720303861314,-500.0,0.00044109,120]
[331381487,1720303861323,-500.0,0.00044109,120]
[331381488,1720303861333,-500.0,0.00044109,120]
[331381489,1720303861342,-457.928979,0.00044109,14]
[331381490,1720303861352,-741.4,0.00044109,120]
[331381491,1720303861362,-457.928979,0.00044109,14]
[331381492,1720303861371,-500.0,0.00044109,120]
[331381493,1720303861381,-457.928979,0.00044109,14]
[331381494,1720303861390,-1000.0,0.00044109,120]
[331381495,1720303861400,-500.0,0.00044109,120]
[331381496,1720303861410,-500.0,0.00044109,120]
[331381497,1720303861420,-501.02191255,0.00044109,120]
[331381498,1720303861430,-1379.55,0.00044109,120]
[331381499,1720303861439,-500.0,0.00044109,120]
[331381500,1720303861449,-500.0,0.00044109,120]
[331381501,1720303861458,-500.0,0.00044109,120]
[331381502,1720303861468,-789.85,0.00044109,120]
[331381503,1720303861477,-2926.83,0.00044109,120]
[331381504,1720303861487,-500.0,0.00044109,120]
[331381505,1720303861497,-506.79,0.00044109,120]
[331381506,1720303861506,-200.0,0.00044109,7]
[331381507,1720303861515,-1515.38,0.00044109,120]
[331381508,1720303861525,-500.0,0.00044109,120]
[331381509,1720303861534,-1200.16,0.00044109,120]
[331381510,1720303861544,-294.26554984,0.00044109,120]
[331381511,1720303861553,-500.0,0.00044109,120]
[331381512,1720303861563,-500.0,0.00044109,120]
[331381513,1720303861572,-1146.76,0.00044109,120]
[331381514,1720303861581,-500.0,0.00044109,120]
[331381515,1720303861592,-500.0,0.00044109,120]
[331381516,1720303861601,-1502.33,0.00044109,120]
[331381517,1720303861613,-500.0,0.00044109,120]
[331381518,1720303861623,-500.0,0.00044109,120]
[331381519,1720303861632,-500.0,0.00044109,120]
[331381520,1720303861642,-500.0,0.00044109,120]
[331381521,1720303861652,-500.0,0.00044109,120]
[331381522,1720303861662,-500.0,0.00044109,120]
[331381523,1720303861671,-500.0,0.00044109,120]
[331381524,1720303861681,-500.0,0.00044109,120]
[331381525,1720303861691,-1379.88,0.00044109,120]
[331381526,1720303861701,-500.0,0.00044109,120]
[331381527,1720303861711,-151.0,0.00044109,14]
[331381528,1720303861720,-151.0,0.00044109,14]
[331381529,1720303861730,-500.0,0.00044109,2]
[331381530,1720303861739,-500.0,0.00044109,120]
[331381531,1720303861748,-2376.09,0.00044109,120]
[331381532,1720303861758,-500.0,0.00044109,120]
[331381533,1720303861767,-500.0,0.00044109,120]
[331381534,1720303861776,-500.0,0.00044109,120]
[331381535,1720303861785,-2851.34,0.00044109,120]
[331381536,1720303861794,-500.0,0.00044109,120]
[331381537,1720303861805,-500.0,0.00044109,120]
[331381538,1720303861814,-740.23,0.00044109,120]
[331381539,1720303861823,-500.0,0.00044109,30]
[331381540,1720303861833,-500.0,0.00044109,120]
[331381541,1720303861842,-500.0,0.00044109,120]
[331381542,1720303861852,-500.0,0.00044109,120]
[331381543,1720303861863,-500.0,0.00044109,120]
[331381544,1720303861873,-553.20963077,0.00044109,120]
[331381545,1720303861883,-151.0,0.00044109,14]
[331381546,1720303861892,-157.451335,0.00044109,14]
[331381547,1720303861902,-500.0,0.00044109,14]
[331381548,1720303861912,-500.82472071,0.00044109,120]
[331381549,1720303861921,-4026.76,0.00044109,120]
[331381550,1720303861931,-500.0,0.00044109,120]
[331381551,1720303861941,-500.0,0.00044109,120]
[331381552,1720303861951,-2897.99,0.00044109,120]
[331381553,1720303861960,-500.0,0.00044109,120]
[331381554,1720303861970,-522.74111351,0.00044109,120]
[331381555,1720303861979,-500.0,0.00044109,120]
[331381556,1720303861989,-500.0,0.00044109,120]
[331381557,1720303861998,-500.0,0.00044109,120]
[331381558,1720303862008,-2043.83,0.00044109,120]
[331381559,1720303862017,-500.0,0.00044109,120]
[331381560,1720303862026,-541.64212224,0.00044109,120]
[331381561,1720303862036,-500.66860635,0.00044109,120]
[331381562,1720303862045,-558.13,0.00044109,120]
[331381563,1720303862055,-500.0,0.00044109,120]
[331381564,1720303862065,-25328.9,0.00044109,120]
[331381565,1720303862074,-500.0,0.00044109,120]
[331381566,1720303862083,-500.0,0.00044109,120]
[331381567,1720303862092,-752.73,0.00044109,120]
[331381568,1720303862102,-500.0,0.00044109,120]
[331381569,1720303862112,-524.03101001,0.00044109,120]
[331381570,1720303862122,-776.75,0.00044109,120]
[331381571,1720303862131,-151.0,0.00044109,14]
[331381572,1720303862140,-151.0,0.00044109,14]
[331381573,1720303862150,-92.17138017,0.00044109,120]
[331381574,1720303862407,-407.82861983,0.00044109,120]
[331381575,1720303862417,-906.97,0.00044109,120]
[331381576,1720303862427,-500.0,0.00044109,120]
[331381577,1720303862436,-185.20138017,0.00044109,120]
[331381578,1720303949934,510.09603467,0.00014999,2]
[331381579,1720303954958,735.49472631,0.00014999,2]
[331381580,1720303956622,172.86292287,0.00014999,2]
[331381581,1720303967203,1986.97335839,0.00014999,2]
[331381582,1720303968025,571.729796,0.00014999,2]
[331381583,1720303969423,777.12632108,0.00014999,2]
[331381584,1720303970018,469.46047385,0.00014999,2]
[331381585,1720303981114,155.30619903,0.00014999,2]
[331381586,1720304054177,154.83742071,0.00014999,2]
[331381587,1720304059794,368.51184958,0.00014999,2]
[331381588,1720304084773,372.56078511,0.00014999,2]
[331381589,1720304086589,405.76697277,0.00014999,2]
[331381590,1720304112639,181.75072073,0.00014999,2]
[331381591,1720304117763,182.63268152,0.00014999,2]
[331381592,1720304120586,154.82195475,0.00014999,2]
[331381593,1720304121181,608.47272589,0.00014999,2]
[331381594,1720304124697,155.14597482,0.00014999,2]
[331381595,1720304128021,523.68456754,0.00014999,2]
[331381596,1720304128566,195.78547452,0.00014999,2]
[331381597,1720304134053,374.63942513,0.00014999,2]
[331381598,1720304134264,212.98780093,0.00014999,2]
[331381599,1720304134779,908.54949828,0.00014999,2]
[331381600,1720304143866,525.93863422,0.00014999,2]
[331381602,1720304172353,250.36777569,0.00014999,2]
[331381603,1720304240229,212.98780093,0.00014999,2]
[331381604,1720304469479,2420.55776569,0.00015,2]
[331381606,1720304515000,274.01454139,0.00014999,2]
[331381607,1720304519358,212.98780093,0.00014999,2]
[331381608,1720304578292,405.47135103,0.00014999,2]
[331381609,1720304580243,262.37967646,0.00014999,2]
[331381611,1720304614302,374.63942513,0.00014999,2]
[331381613,1720304623247,176.63539191,0.00014999,2]
[331381614,1720304664785,6982.93549325,0.00014998,2]
[331381616,1720304792302,3137.77932824,0.00014999,2]
[331381617,1720304919285,-701.9240243,0.00015286,2]
[331381618,1720304919358,-151.71761769,0.00015545,2]
[331381619,1720304919657,-853.64164199,0.00015545,2]
[331381620,1720304920104,-431.70890763,0.00015545,2]
[331381621,1720304944274,-896.42148582,0.00015545,2]
[331381622,1720304945026,-221.65423057,0.00015545,2]
[331381623,1720304969154,-444.8561163,0.00015545,2]
[331381624,1720304970018,1000.0,0.00019,19]
[331381626,1720304992784,304600.40968436,0.00033892,30]
[331381627,1720304994261,-300.0,0.00015851,2]
[331381628,1720304994324,-596.42148582,0.00015852,2]
[331381629,1720304996149,6417.73232032,0.00014998,2]
[331381630,1720305002852,1000.0,0.00019,19]
[331381631,1720305005260,232.46378436,0.00014999,2]
[331381669,1720305033839,-300.0,0.00015851,2]
[331381670,1720305033850,-300.0,0.00015851,2]
[331381674,1720305033881,-1221.20639829,0.00015852,2]
[331381675,1720305033908,-3848.01,0.00015852,2]
[331381677,1720305033921,-10524.04886182,0.00015852,2]
[331381678,1720305033935,-1011.24770122,0.00015852,2]
[331381680,1720305033971,-2234.10057354,0.00015852,2]
[331381710,1720305040608,-300.0,0.00015851,2]
[331381720,1720305040657,-12587.30675201,0.00015852,2]
[331381721,1720305040689,-154.82195475,0.00016255,2]
[331381724,1720305040706,-365.41949915,0.00016885,2]
[331381725,1720305040720,-24900.0,0.00016886,2]
[331381726,1720305040731,-250.0,0.0001701,2]
[331381727,1720305040743,-556.783737,0.00017034,2]
[331381728,1720305040754,-1717.8737618,0.00017074,2]
[331381729,1720305040766,-166.666666,0.00017229,2]
[331381730,1720305040778,-420.0,0.00017436,2]
[331381731,1720305040822,-166.666666,0.00017699,2]
[331381732,1720305040842,-495.45572168,0.00018,2]
[331381733,1720305040855,-166.666666,0.00018168,2]
[331381734,1720305040882,-155.16757676,0.0001818,2]
[331381735,1720305040931,-190.98130658,0.0001818,2]
[331381736,1720305040942,-245.20896789,0.0001818,2]
[331381737,1720305040971,-166.666666,0.00018638,2]
[331381738,1720305041001,-150.0,0.00018675,2]
[331381739,1720305041027,-30917.44411425,0.0001879,2]
[331381740,1720305041038,-150.25347751,0.000188,2]
[331381741,1720305041100,-57222.12785795,0.00018899,2]
[331381742,1720305041111,-17404.1313897,0.000189,2]
[331381743,1720305041142,-812.51622582,0.00019,3]
[331381744,1720305041155,-197.16559461,0.00019,2]
[331381745,1720305041166,-1000.0,0.00019,4]
[331381746,1720305041176,-250.0,0.00019041,2]
[331381747,1720305041187,-166.666666,0.00019108,2]
[331381748,1720305041197,-158.067711,0.00019178,2]
[331381749,1720305041207,-352.10804848,0.00019223,2]
[331381750,1720305041219,-166.666666,0.00019577,2]
[331381751,1720305041252,-52108.7037465,0.000198,2]
[331381752,1720305041265,-369.18,0.00019999,2]
[331381753,1720305041277,-413.01308841,0.00019999,2]
[331381754,1720305041288,-225.0,0.00019999,2]
[331381755,1720305041341,-1928.00894445,0.0002,2]
[331381756,1720305041354,-1117.11621423,0.0002,2]
[331381757,1720305041369,-763.32326228,0.0002,2]
[331381758,1720305041398,-201390.60059411,0.0002,2]
[331381759,1720305041462,-10276.35107581,0.0002,2]
[331381760,1720305041474,-182.41181182,0.00020055,2]
[331381761,1720305041488,-150.39549383,0.00020055,2]
[331381762,1720305041534,-150.0,0.00020057,2]
[331381763,1720305041547,-250.0,0.00020605,2]
[331381764,1720305041560,-472.611368,0.00021096,2]
[331381765,1720305041570,-11232.4213445,0.00022,2]
[331381766,1720305041584,-150.0,0.00022,2]
[331381767,1720305041595,-160.47824648,0.00022548,2]
[331381768,1720305041606,-1000.0,0.00024,24]
[331381769,1720305041619,-30000.0,0.00024042,2]
[331381770,1720305041630,-556.783737,0.00025551,2]
[331381771,1720305041640,-472.611368,0.00027195,2]
[331381772,1720305041654,-500.0,0.00027397,2]
[331381773,1720305041673,-500.0,0.00027397,2]
[331381774,1720305041684,-500.0,0.00027397,2]
[331381775,1720305041694,-500.0,0.00027397,2]
[331381776,1720305041734,-374.68797638,0.00027397,2]
[331381777,1720305041745,-173.580737,0.00027397,120]
[331381778,1720305041755,-42231.73992324,0.00027399,2]
[331381779,1720305041794,-42231.73992324,0.00027399,2]
[331381780,1720305041804,-1000.0,0.00029,29]
[331381781,1720305041814,-100000.0,0.00029803,2]
[331381782,1720305041914,-495.50543718,0.0003,4]
[331381783,1720305041945,-309.61298378,0.0003,4]
[331381784,1720305041963,-216.0,0.0003,2]
[331381785,1720305041974,-158.067711,0.00031631,2]
[331381786,1720305041985,-1000.0,0.00032876,10]
[331381787,1720305041998,-216.0,0.00033,2]
[331381788,1720305042020,-216.0,0.00033,2]
[331381789,1720305042030,-472.611368,0.00033295,2]
[331381790,1720305042116,-38721.04450084,0.00033892,30]
[331381791,1720305042127,-1000.0,0.00034,34]
[331381792,1720305042138,-1000.0,0.00034246,10]
[331381793,1720305042163,-23177.2899068,0.00034467,4]
[331381794,1720305042225,-1000.0,0.00035616,10]
[331381795,1720305042235,-395.4705443,0.00036,30]
[331381796,1720305042245,-216.0,0.00036,2]
[331381797,1720305042272,-216.0,0.00036,2]
[331381798,1720305042283,-4710.72024946,0.00036239,4]
[331381799,1720305042293,-1000.0,0.00036986,10]
[331381800,1720305042312,-878.0,0.0003784,2]
[331381801,1720305042322,-1000.0,0.00038356,10]
[331381802,1720305042333,-1181.60256234,0.00038999,4]
[331381808,1720305042393,-1000.0,0.00039,39]
[331381811,1720305042418,-216.0,0.00039,2]
[331381814,1720305042441,-472.611368,0.00039394,2]
[331381817,1720305042455,-1000.0,0.00039726,10]
[331381820,1720305042465,-150.0,0.00040222,4]
[331381822,1720305042483,-491.6576874,0.00040228,4]
[331381823,1720305042494,-754.02236486,0.00040278,2]
[331381827,1720305042556,-804.12217665,0.00040278,4]
[331381828,1720305042568,-754.02236486,0.00040278,2]
[331381831,1720305042580,-153.0,0.00040396,2]
[331381832,1720305042610,-206.1814845,0.00040396,2]
[331381835,1720305042650,-205.6478485,0.00040396,2]
[331381837,1720305042698,-150.0,0.0004071,2]
[331381838,1720305042775,-878.0,0.0004084,2]
[331381839,1720305042786,-1000.0,0.00041095,10]
[331381840,1720305042808,-160.0,0.00041489,3]
[331381841,1720305042824,-152.0,0.0004205,31]
[331381842,1720305042834,-152.0,0.00042231,31]
[331381843,1720305042903,-152.0,0.00042411,31]
[331381844,1720305042930,-7746.36,0.00042465,120]
[331381845,1720305042985,-1000.0,0.00042465,10]
[331381846,1720305043021,-2500.0,0.000425,120]
[331381847,1720305043053,-152.0,0.00042592,31]
[331381848,1720305043064,-152.0,0.00042772,31]
[331381849,1720305043085,-160.0,0.00042804,4]
[331381850,1720305043095,-152.0,0.00042952,31]
[331381851,1720305043147,-209.9557781,0.00042999,4]
[331381852,1720305043179,-1734.0,0.000431,19]
[331381853,1720305043213,-1734.0,0.000431,19]
[331381854,1720305043260,-1428.0,0.000431,19]
[331381855,1720305043270,-152.0,0.00043133,31]
[331381856,1720305043303,-7746.36,0.0004315,120]
[331381857,1720305043323,-492.47001549,0.00043287,4]
[331381858,1720305043333,-152.0,0.00043313,31]
[331381859,1720305043343,-152.0,0.00043494,31]
[331381860,1720305043357,-152.0,0.00043674,31]
[331381861,1720305043370,-508.00825059,0.00043704,8]
[331381862,1720305043408,-150.0,0.0004371,2]
[331381863,1720305043440,-43916.4853923,0.00043735,5]
[331381864,1720305043456,-744.0,0.00043735,5]
[331381865,1720305043487,-28104.24758356,0.00043735,5]
[331381876,1720305047950,-435.0,0.00041314,2]
[331381878,1720305047988,-16123.26702414,0.00043735,5]
[331381879,1720305048001,-2000.0,0.00043735,2]
[331381880,1720305048014,-160.0,0.00043799,30]
[331381881,1720305048031,-301.826708,0.000438,23]
[331381882,1720305048055,-444.67321023,0.00043835,120]
[331381883,1720305048072,-500.0,0.00043835,120]
[331381884,1720305048082,-151.0,0.00043835,14]
[331381885,1720305048120,-151.0,0.00043835,14]
[331381886,1720305048130,-151.0,0.00043835,14]
[331381887,1720305048146,-667.07,0.00043835,120]
[331381888,1720305048201,-500.0,0.00043835,120]
[331381889,1720305048215,-500.0,0.00043835,120]
[331381890,1720305048225,-1075.82,0.00043835,120]
[331381891,1720305048235,-500.0,0.00043835,120]
[331381892,1720305048275,-500.0,0.00043835,120]
[331381893,1720305048317,-500.0,0.00043835,120]
[331381894,1720305048345,-500.0,0.00043835,120]
[331381895,1720305048377,-167.54516086,0.00043835,120]
[331381896,1720305048386,-500.0,0.00043835,120]
[331381897,1720305048397,-500.0,0.00043835,120]
[331381898,1720305048406,-508.97122368,0.00043835,120]
[331381899,1720305048416,-500.0,0.00043835,120]
[331381900,1720305048426,-151.0,0.00043835,14]
[331381901,1720305048457,-151.0,0.00043835,14]
[331381902,1720305048466,-2425.28,0.00043835,120]
[331381903,1720305048481,-151.0,0.00043835,14]
[331381904,1720305048510,-151.0,0.00043835,14]
[331381905,1720305048569,-500.0,0.00043835,120]
[331381907,1720305048584,-500.0,0.00043835,120]
[331381908,1720305048618,-500.0,0.00043835,120]
[331381910,1720305048643,-151.0,0.00043835,14]
[331381911,1720305048656,-151.0,0.00043835,14]
[331381913,1720305048667,-151.0,0.00043835,14]
[331381914,1720305048678,-151.0,0.00043835,14]
[331381916,1720305048710,-500.0,0.00043835,120]
[331381918,1720305048721,-151.0,0.00043835,14]
[331381920,1720305048731,-500.0,0.00043835,120]
[331381921,1720305048752,-500.0,0.00043835,120]
[331381922,1720305048762,-500.0,0.00043835,120]
[331381923,1720305048772,-1000.0,0.00043835,120]
[331381924,1720305048783,-500.0,0.00043835,120]
[331381925,1720305048805,-500.0,0.00043835,120]
[331381926,1720305048838,-500.0,0.00043835,120]
[331381927,1720305048849,-500.0,0.00043835,120]
[331381928,1720305048858,-500.0,0.00043835,120]
[331381929,1720305048905,-500.0,0.00043835,120]
[331381930,1720305048915,-500.0,0.00043835,120]
[331381932,1720305048925,-2661.2,0.00043835,120]
[331381934,1720305048935,-500.0,0.00043835,120]
[331381936,1720305048968,-500.0,0.00043835,120]
[331381937,1720305049030,-500.0,0.00043835,120]
[331381938,1720305049053,-500.0,0.00043835,120]
[331381939,1720305049063,-218.30427205,0.00043835,120]
[331381940,1720305049074,-500.0,0.00043835,120]
[331381941,1720305049084,-500.0,0.00043835,120]
[331381942,1720305049094,-1044.97,0.00043835,120]
[331381943,1720305049157,-504.909451,0.00043835,120]
[331381944,1720305049168,-500.0,0.00043835,120]
[331381945,1720305049178,-1463.37,0.00043835,120]
[331381946,1720305049189,-500.0,0.00043835,120]
[331381947,1720305049205,-645.98037835,0.00043835,120]
[331381948,1720305049254,-19525.5,0.00043835,120]
[331381949,1720305049265,-500.0,0.00043835,120]
[331381950,1720305049276,-500.0,0.00043835,120]
[331381951,1720305049288,-500.0,0.00043835,120]
[331381952,1720305049314,-500.0,0.00043835,120]
[331381953,1720305049326,-500.0,0.00043835,120]
[331381954,1720305049339,-500.0,0.00043835,120]
[331381955,1720305049350,-320.29546876,0.00043835,120]
[331381956,1720305049363,-500.0,0.00043835,120]
[331381957,1720305049379,-500.0,0.00043835,120]
[331381958,1720305049392,-500.0,0.00043835,120]
[331381959,1720305049406,-500.0,0.00043835,120]
[331381960,1720305049418,-500.0,0.00043835,30]
[331381961,1720305049454,-500.0,0.00043835,120]
[331381962,1720305049476,-9455.43,0.00043835,120]
[331381963,1720305049487,-300.03609196,0.00043835,120]
[331381964,1720305049500,-917.22,0.00043835,120]
[331381965,1720305049512,-471.99222389,0.00043835,120]
[331381966,1720305049523,-2249.52,0.00043835,120]
[331381967,1720305049579,-546.07,0.00043835,120]
[331381968,1720305049618,-188.27387723,0.00043835,120]